Cogmind - Beta 14 @@@ ROGUE MODE // 2024.12.12 @ 22:28:12 Player: certified.possum Result: Self-destructed Performance ------------- Evolutions (1) 500 Regions Visited (2) 400 Robots Destroyed (30) 150 Value Destroyed (582) 582 Prototype IDs (0) 0 Alien Tech Used (0) 0 Bonus (0) 0 TOTAL SCORE: 1632 Bonus ------- None Cogmind --------- Core Integrity 257/400 Matter 24/300 Energy 204/250 System Corruption 0% Temperature Cool (0) Movement Flying (29) Location -9/Materials Parts ------- > --- POWER (1) -------- Ion Engine > --- PROPULSION (3) --- VTOL Module VTOL Module VTOL Module > --- UTILITY (3) ------ Improved Signal Interpreter ECM Suite > --- WEAPON (2) ------- Grenade Launcher > --- INVENTORY (5) ---- (None) Peak State ------------ > --- POWER ------------ Ion Engine > --- PROPULSION ------- VTOL Module VTOL Module VTOL Module > --- UTILITY ---------- Improved Signal Interpreter > --- WEAPON ----------- Improved Grenade Launcher > --- INVENTORY -------- Flight Unit Flight Unit Flight Unit Heavy EM Pulse Gun Grenade Launcher [Rating: 13] Favorites ----------- Power Ion Engine Engine Ion Engine Power Core Light Nuclear Core Propulsion Light Treads Treads Light Treads Flight Unit VTOL Module Utility Small Storage Unit Device ECM Suite Storage Small Storage Unit Processor Improved Signal Interpreter Protection Propulsion Shielding Weapon Heavy EM Pulse Gun Energy Gun Heavy EM Pulse Gun Ballistic Cannon Improved Light Cannon Launcher Improved Grenade Launcher Build | -11 -10 -9 ------- Run | Yrd Mat Mat Slots Evolved 2 | . . 2 Power . | . . . Propulsion 1 | . . 1 Utility 1 | . . 1 Weapon . | . . . Parts Attached 28 | 6 9 13 Power 3 | 1 2 . Engine 2 | 1 1 . Core 1 | . 1 . Reactor . | . . . Propulsion 11 | 2 2 7 Treads 2 | 2 . . Leg . | . . . Wheel . | . . . Hover . | . . . Flight 9 | . 2 7 Utility 4 | 1 1 2 Device 1 | . . 1 Storage 1 | 1 . . Processor 1 | . . 1 Hackware . | . . . Protection 1 | . 1 . Artifact . | . . . Weapon 10 | 2 4 4 Energy Gun 5 | 2 2 1 Energy Cannon . | . . . Ballistic Gun . | . . . Ballistic Cannon 1 | . 1 . Launcher 4 | . 1 3 Special Weapon . | . . . Impact Weapon . | . . . Slashing Weapon . | . . . Piercing Weapon . | . . . Special Melee Weapon . | . . . Unidentified Prototypes . | . . . Parts Lost 4 | . . 4 Power . | . . . Propulsion 3 | . . 3 Utility . | . . . Weapon 1 | . . 1 Highest Loss Streak 3 | . . 3 To Critical Strikes . | . . . Average Slot Usage (%) 82 | . 86 68 Engine 8 | . 8 11 Core 4 | . 5 . Treads 22 | . 27 . Flight 6 | . . 33 Storage 11 | . 14 . Processor 2 | . . 10 Protection 1 | . 1 . Energy Gun 15 | . 18 . Ballistic Cannon 7 | . 9 . Launcher 2 | . . 9 Peak Build Rating 13 | 6 11 13 Average Rating 8 | 3 8 12 On Entrance 3 | . 6 4 Naked Turns . | . . . Heaviest Build 18 | 14 18 11 Greatest Support 40 | 40 40 12 Greatest Overweight (x) . | . . . Average Overweight (x) . | . . . Largest Inventory Capacity 8 | 8 8 5 Average Capacity 7 | 6 7 5 Most Carried 8 | 5 8 5 Average Carried 4 | 1 5 3 Final Capacity 8 | 8 5 5 Final Carried 3 | 2 3 . Class Distribution -------------------- 79% | Mutant 20% | Sprinter Dominant Class ---------------- Mutant | -10/Materials Sprinter | -9/Materials Resources | -11 -10 -9 ----------- Run | Yrd Mat Mat Matter Collected 474 | 111 303 60 Remotely . | . . . Salvage Created 663 | . 400 263 Parts 51 | . 26 25 Haulers Intercepted . | . . . Recyclers Shooed . | . . . Parts Field Recycled . | . . . Retrieved Matter . | . . . Parts Self-Destructed . | . . . Prevented . | . . . Kills | -11 -10 -9 ------- Run | Yrd Mat Mat Combat Hostiles Destroyed 17 | . 10 7 Guns 6 | . 6 . Cannons 4 | . 4 . AOE 7 | . . 7 Classes Destroyed 9 | . 6 3 Worker 2 | . 1 1 Builder 6 | . . 6 Recycler 1 | . 1 . Operator 1 | . 1 . Watcher 3 | . 2 1 Swarmer 6 | . 6 . Grunt 9 | . 4 5 Brawler 1 | . . 1 Sentry 1 | . . 1 Best Kill Streak 10 | . 3 10 Combat Bots Only 4 | . 2 4 Max Kills in Single Turn 6 | . 1 6 Gunslinging . | . . . Exploded 3 | . . 3 Melee . | . . . Uniques/NPCs Destroyed . | . . . Combat | -11 -10 -9 -------- Run | Yrd Mat Mat Hostile Shots Fired 106 | . 47 59 Missed 40 | . 10 30 Damage Taken 769 | . 366 403 Core 196 | . 53 143 Absorbed by Shields . | . . . Core Remaining (%) 89 | 100 78 . Volleys Fired 50 | . 36 14 Largest 2 | . 2 1 Hottest 90 | . 90 36 Shots Fired 86 | . 72 14 Gun 45 | . 45 . Cannon 27 | . 27 . Launcher 14 | . . 14 Special . | . . . Kinetic 27 | . 27 . Thermal 9 | . 9 . Explosive 14 | . . 14 Electromagnetic 36 | . 36 . Robot Hit Streak 8 | . 8 3 Robot Miss Streak 4 | . 3 4 Penetration Max . | . . . Secondary Targets . | . . . Shots Hit Robots 42 | . 38 4 Core Hits 38 | . 16 22 Critical Kills . | . . . Critical Parts Destroyed . | . . . Critical Strikes 2 | . 2 . Blast 2 | . 2 . Melee Attacks . | . . . Impact . | . . . Slashing . | . . . Piercing . | . . . Sneak Attacks . | . . . Combat Hostiles . | . . . Follow-up Attacks . | . . . Damage Inflicted 1811 | . 720 1091 Guns 361 | . 361 . Cannons 319 | . 319 . Explosions 1128 | . 37 1091 Melee . | . . . Ramming 3 | . 3 . Kinetic 319 | . 319 . Thermal 99 | . 99 . Explosive 1091 | . . 1091 Electromagnetic 299 | . 299 . Impact . | . . . Slashing . | . . . Piercing . | . . . Highest Corruption . | . . . Average Corruption . | . . . Corruption Purged . | . . . Corruption Blocked . | . . . Overload Shots . | . . . Overflow Damage 48 | . 33 15 Projectiles 33 | . 33 . Explosions 15 | . . 15 Melee . | . . . Knockbacks 4 | . 4 . Impact . | . . . Kinetic 4 | . 4 . Secondary . | . . . Self-Inflicted Damage 103 | . . 103 Shots 3 | . . 3 Rammed 1 | . 1 . Targets Rammed 1 | . 1 . Kicked . | . . . Crushed . | . . . Highest Temperature 186 | . 186 27 Average Temperature 56 | . 63 7 Received Heat Transfer 237 | . 129 108 Siege Activations . | . . . Robots Corrupted . | . . . Combat Hostiles . | . . . Parts Fried . | . . . Impact Corruptions . | . . . Robots Melted . | . . . Combat Hostiles . | . . . Parts Melted . | . . . Heat Transferred 235 | . 235 . Parts Sabotaged . | . . . Parts Stolen . | . . . Parts Stripped . | . . . Power Chain Reactions 1 | . 1 . Alert | -11 -10 -9 ------- Run | Yrd Mat Mat Peak Influence 423 | . 331 423 Initial 76 | . . 76 Average 136 | . 113 262 Maximum Alert Level 2 | . 1 2 Low Security (%) 73 | 100 83 25 Level 1 20 | . 16 42 Level 2 6 | . . 31 Level 3 . | . . . Level 4 . | . . . Level 5 . | . . . High Security . | . . . Max Security . | . . . Squads Dispatched 1 | . 1 . Investigation 1 | . 1 . Extermination . | . . . Reinforcement . | . . . Assault . | . . . Garrison . | . . . Intercept . | . . . Searches Triggered . | . . . Construction Impeded . | . . . Haulers Reinforced . | . . . Active Scanning Responses . | . . . Cargo Convoy Interrupts . | . . . Stealth | -11 -10 -9 --------- Run | Yrd Mat Mat Distress Signals 2 | . 2 . Communications Jammed . | . . . Distress Signals . | . . . Times Spotted 45 | . 22 23 Peak Tracking Total 8 | . 3 8 Tactical Retreats 4 | . 2 2 Traps | -11 -10 -9 ------- Run | Yrd Mat Mat Traps Triggered 1 | . 1 . Indirectly . | . . . Trap Hack Attempts . | . . . Triggered . | . . . Disarmed . | . . . Reprogrammed . | . . . Reused . | . . . Traps Extracted . | . . . Installed . | . . . Triggered . | . . . Machines | -11 -10 -9 ---------- Run | Yrd Mat Mat Machines Disabled 2 | . . 2 Max in Single Turn 1 | . . 1 Machines Repaired . | . . . Machines Dismantled . | . . . Machines Sabotaged . | . . . Overloaded Fab Kills . | . . . Hacking | -11 -10 -9 --------- Run | Yrd Mat Mat Machines Accessed . | . . . Terminals . | . . . Fabricators . | . . . Repair Stations . | . . . Recycling Units . | . . . Scanalyzers . | . . . Garrison Access . | . . . Total Hacks . | . . . Successful . | . . . Failed . | . . . Catastrophic . | . . . Database Lockouts . | . . . Manual . | . . . Terminals . | . . . Fabricators . | . . . Repair Stations . | . . . Recycling Units . | . . . Scanalyzers . | . . . Garrison Access . | . . . Terminal Hacks . | . . . Fabricator Hacks . | . . . Repair Station Hacks . | . . . Recycling Unit Hacks . | . . . Scanalyzer . | . . . Garrison Access Hacks . | . . . Unauthorized Hacks . | . . . Terminals . | . . . Fabricators . | . . . Repair Stations . | . . . Recycling Units . | . . . Scanalyzers . | . . . Garrison Access . | . . . Data Cores Recovered 1 | . 1 . Used . | . . . Hacking Detections . | . . . Full Trace Events . | . . . Feedback Events . | . . . Feedback Blocked . | . . . Robot Schematics Acquired . | . . . Robots Built . | . . . Authchips . | . . . Time . | . . . Total Robot Build Rating . | . . . Part Schematics Acquired . | . . . Parts Built . | . . . Authchips . | . . . Time . | . . . Total Part Build Rating . | . . . Parts Repaired . | . . . Time . | . . . Parts Recycled . | . . . Recycled Matter . | . . . Retrieved Matter . | . . . Retrieved Components . | . . . Parts Scanalyzed . | . . . Part Schematics Acquired . | . . . Parts Damaged . | . . . Bothacking | -11 -10 -9 ------------ Run | Yrd Mat Mat Used RIF Installer . | . . . Robots Hacked . | . . . Non-combat . | . . . Combat . | . . . Robot Hacks Applied . | . . . Relay Couplers Released . | . . . Fabnet Peak Effective % . | . . . Robots Rewired . | . . . Allies Hacked . | . . . Hacks Repelled . | . . . Allies | -11 -10 -9 -------- Run | Yrd Mat Mat Total Allies . | . . . Largest Group . | . . . Highest-Rated Group . | . . . Highest-Rated Ally . | . . . Total Orders . | . . . Ally Attacks . | . . . Total Damage . | . . . Kills . | . . . Allies Corrupted . | . . . Allies Melted . | . . . Intel | -11 -10 -9 ------- Run | Yrd Mat Mat Robot Analysis Total . | . . . Derelict Logs Recovered . | . . . Drone Launches . | . . . Drone Recoveries . | . . . Exploration | -11 -10 -9 ------------- Run | Yrd Mat Mat Turns Passed 1124 | 54 857 213 Spaces Moved 1022 | 30 454 538 Core 6 | 6 . . Treads 473 | 24 449 . Legs . | . . . Wheels . | . . . Hover . | . . . Flight 543 | . 5 538 Fastest Speed 29 | 50 37 29 Average Speed 89 | 138 158 29 Slowest Speed 160 | 160 160 34 Overloaded Moves . | . . . Propulsion Burnouts . | . . . Robots Hopped 19 | . . 19 Cave-ins Triggered . | . . . Exploration Rate (%) 38 | 3 71 40 Regions Visited 2 Branch Regions . Pre-discovered Areas . | . . . Known Exits Taken . | . . . Unknown Exits Taken 2 | 1 1 . Scrap Searched . | . . . Spaces Dug . | . . . Terrain Destroyed 75 | . 6 69 Melee . | . . . Projectile 3 | . 3 . AOE 72 | . 3 69 Terrain Rammed . | . . . Walls Destroyed . | . . . Machines Disabled . | . . . Actions | -11 -10 -9 --------- Run | Yrd Mat Mat Total 1126 | 43 521 562 Wait . | . . . Move 985 | 29 453 503 Hop 16 | . . 16 Pick Up 27 | 8 10 9 Fast Attach 1 | . 1 . Attach 18 | 6 3 9 Detach 2 | . . 2 Swap 9 | . 5 4 Drop 17 | . 12 5 Fire 50 | . 36 14 Melee . | . . . Ram . | . . . Kick . | . . . Crush 1 | . 1 . Escape Stasis . | . . . Rewire . | . . . Trap . | . . . Miscellaneous . | . . . Route ------- -11/Scrapyard -10/Materials (discovered 2 exits: [*Mat x2]) -9/Materials (discovered 1 exit: *Min) History --------- Turn | Location | Event 6 | -11/Scrapyard | Discovered new exit (range 15) 55 | -11/Scrapyard | Entered Materials 303 | -10/Materials | Build established: Mutant 336 | -10/Materials | Discovered new exit (range 11) 900 | -10/Materials | Discovered new exit (range 7) 912 | -10/Materials | Entered another Materials area 912 | -9/Materials | Evolved 2 slots: Propulsion x1, Utility x1 1089 | -9/Materials | Lost 3 parts (2n1w) 1118 | -9/Materials | Discovered new exit (range 14) 1123 | -9/Materials | Identified exit to Mines 1125 | -9/Materials | Self-destructed Last Messages --------------- Destroyed Ion Engine. G-34 Mercenary destroyed. U-05 Engineer destroyed. K-01 Serf collects debris. G-34 Mercenary destroyed. U-05 Engineer destroyed. Imp. Grenade Launcher destroyed. K-01 Serf collects debris. U-05 Engineer lays Concrete. K-01 Serf collects debris. U-05 Engineer lays Concrete. U-05 Engineer builds a Wall. U-05 Engineer lays Concrete. U-05 Engineer builds a Wall. S-10 Pest destroyed. K-01 Serf collects debris. EXIT=FOUND VTOL Module destroyed. K-01 Serf collects debris. EXIT=IDENTIFIED: MINES Map ----- +----------------------------------------------------+ | | | | | | | | | | | | | | | | | | | | | | | | | | | | | | | | | ??????????????????????????????????????????? | | ??????????????????????????????????????????? | | ??????????????????????????????????????????? | | ??????????????????????????????????????????? | | ??????????????????????????????????????????? | | ???????????????????????#####??????????????? | | ??????????????????????##"""##?????????????? | | ?????????????????????##"!!!"##????????????? | | ?????????????????????#"" ""#????????????? | | ?????????????????????# @ #????????????? | | ?????????????????????# > #????????????? | | ?????????????????????# #????????????? | | ???????????####+#????# #????????????? | | ???????????# ###### ##????????????? | | ???????????# ### ##?????????????? | | ???????????# k #??????????????? | | ???????????# #??????????????? | | ???????????# #??????????????? | | ????????#+## t##?????????????? | | ??????? #?????????????? | | ??????? #?????????????? | | ??????? +?????????????? | | ??????? #?????????????? | | ####????############ #?????????????? | | #???#########???# #?????????????? | | ##### #??## #?????????????? | | # # #??# #?????????????? | | # # #??# #?????????????? | | !! + + ! [ #??# #?????????????? | | !! # # = #??# ### #?????????????? | | ! # ############%= #?? #??????????? | | #= #??//!!!!#??????????? | | + #??//!!!!#??????????? | | #/## #???######??????????? | +----------------------------------------------------+ Best States ------------- Heat Dissipation 28 Energy Generation 14 Energy Capacity 250 Matter Stores 300 Matter Capacity 300 Sight Range 16 Terrain Scan Density 10 ECM Strength 1 Propulsion Shielding 33 Evasion (%) 64 Recoil Reduction 2 Item Schematics ----------------- None Robot Schematics ------------------ None Fabricated ------------ Nothing Alien Tech Used ----------------- None Achievements -------------- None Challenges ------------ None Game ------ Seed PropulsionLayeredDerivative Manual? 0 Play Time 00:10:25 Cumulative 4.9 hours Start 2024.12.08 @ 01:34:55 End 2024.12.12 @ 22:28:12 Sessions 3 Manual Loads 0 Difficulty Rogue Special Mode None Game No. 17 Rogue 17 Adventurer 0 Explorer 0 Win Type - Total 0 Types 0/0/0/0/0/0/0/0/0 Lore% 2 Gallery% 11 Achievement% 12 Wizard Run 0 Options --------- Layout 1 ASCII 0 Keyboard 0 Movement Mouse Keybinds 0 Fullscreen 2 Font 32/Tamsyn Map View 50x35 Zoom Use 0% Tactical HUD 0 Map Filters NONE Filters NONE Steam 1 RUN: c819d6e2-5c83-47cb-bc38-a697c069b50c